[Event "Turkish Youth Championships 2023"]
[Site "Samsun"]
[Date "2023.05.21"]
[Round "4.11"]
[White "Aydogdu, Cagatay"]
[Black "Turker, Esat Tuna"]
[Result "1/2-1/2"]
[WhiteElo "1856"]
[BlackElo "1713"]
[Annotator "COMBH"]
[PlyCount "155"]
[EventDate "2023.05.19"]
[EventType "swiss"]
[EventCountry "TUR"]
[TimeControl "5400+30"]
[BlackClock "0:02:04"]

1. e4 {[%emt 0:04:00]} c5 {[%emt 0:01:00]} 2. Nf3 {[%emt 0:00:30]} a6 {[%emt 0:00:30]} 3. g3 {[%emt 0:00:30]} Nc6 {[%emt 0:01:30]} 4. c4 {[%emt 0:02:30]} e5 {[%emt 0:01:30]} 5. Nc3 {[%emt 0:00:30]} d6 {[%emt 0:00:30]} 6. d3 {[%emt 0:00:00]} g6 {[%emt 0:05:30]} 7. Bg5 {[%emt 0:01:00]} f6 {[%emt 0:08:30]} 8. Be3 {[%emt 0:00:30]} Bg7 {[%emt 0:00:30]} 9. h4 {[%emt 0:00:30]} Nh6 {[%emt 0:10:30]} 10. Nh2 {[%emt 0:10:30]} f5 {[%emt 0:04:30]} 11. Bg5 {[%emt 0:00:30]} Qa5 {[%emt 0:00:30]} 12. Qd2 {[%emt 0:00:30]} Ng4 {[%emt 0:18:30]} 13. Nxg4 {[%emt 0:03:30]} fxg4 {[%emt 0:00:30]} 14. Nd5 {[%emt 0:02:30]} Qxd2+ {[%emt 0:00:30]} 15. Kxd2 {[%emt 0:31:30]} Rb8 {[%emt 0:09:30]} 16. h5 {[%emt 0:01:30]} h6 {[%emt 0:06:30]} 17. Be3 {[%emt 0:02:30]} g5 {[%emt 0:00:30]} 18. Be2 {[%emt 0:00:30]} Nd4 {[%emt 0:05:30]} 19. Rhb1 {[%emt 0:00:30]} a5 {[%emt 0:03:30]} 20. Bd1 {[%emt 0:03:30]} Kf7 {[%emt 0:00:30]} 21. a3 {[%emt 0:00:30]} b6 {[%emt 0:03:19]} 22. b4 {[%emt 0:07:30]} Bd7 {[%emt 0:00:32]} 23. bxa5 {[%emt 0:00:30]} bxa5 {[%emt 0:00:30]} 24. Nb6 {[%emt 0:00:30]} Be6 {[%emt 0:00:30]} 25. Bxd4 {[%emt 0:00:30]} exd4 {[%emt 0:00:30]} 26. Rb5 {[%emt 0:00:30]} Rhf8 {[%emt 0:02:55]} 27. Rab1 {[%emt 0:02:30]} Kg8 {[%emt 0:00:30]} 28. Ke1 {[%emt 0:00:30]} Rf7 {[%emt 0:00:51]} 29. Rxa5 {[%emt 0:00:30]} Rbf8 {[%emt 0:00:21]} 30. Rb2 {[%emt 0:00:30]} Be5 {[%emt 0:00:35]} 31. Ra8 {[%emt 0:00:30]} Rxa8 {[%emt 0:00:47]} 32. Nxa8 {[%emt 0:00:30]} Ra7 {[%emt 0:00:00]} 33. Rb8+ {[%emt 0:00:00]} Kf7 {[%emt 0:00:33]} 34. a4 {[%emt 0:13:26]} d5 {[%emt 0:00:46]} 35. exd5 {[%emt 0:00:56]} Bxd5 {[%emt 0:06:29]} 36. cxd5 {[%emt 0:01:07]} Bxb8 {[%emt 0:00:30]} 37. Nb6 {[%emt 0:00:02]} Ra6 {[%emt 0:00:02]} 38. Nc4 {[%emt 0:01:16]} Ke7 {[%emt 0:00:52]} 39. Nd2 {[%emt 0:03:19]} Bc7 {[%emt 0:01:09]} 40. Ne4 {[%emt 0:00:56]} Bd6 {[%emt 0:00:07]} 41. Kd2 {[%emt 0:00:00]} Rb6 {[%emt 0:01:17]} 42. Bxg4 {[%emt 0:00:04]} Rb2+ {[%emt 0:00:30]} 43. Kc1 {[%emt 0:01:33]} Rb4 {[%emt 0:00:05]} 44. Bd1 {[%emt 0:00:11]} c4 {[%emt 0:00:03]} 45. dxc4 {[%emt 0:00:15]} Rxc4+ {[%emt 0:00:05]} 46. Kd2 {[%emt 0:00:32]} Be5 {[%emt 0:00:47]} 47. Kd3 {[%emt 0:01:39]} Rb4 {[%emt 0:00:32]} 48. Bc2 {[%emt 0:00:26]} Rb2 {[%emt 0:01:10]} 49. Kd2 {[%emt 0:01:10]} Kd7 {[%emt 0:03:05]} 50. Kc1 {[%emt 0:01:20]} Rb4 {[%emt 0:01:40]} 51. Bd3 {[%emt 0:00:00]} Ke7 {[%emt 0:01:10]} 52. a5 {[%emt 0:00:00]} Bd6 {[%emt 0:00:26]} 53. a6 {[%emt 0:00:15]} Ra4 {[%emt 0:00:08]} 54. Kb2 {[%emt 0:00:34]} Ra5 {[%emt 0:00:31]} 55. Bc4 {[%emt 0:01:05]} Ra4 {[%emt 0:00:07]} 56. Bf1 {[%emt 0:04:26]} Ra5 {[%emt 0:01:37]} 57. Bc4 {[%emt 0:00:05]} Ra4 {[%emt 0:00:12]} 58. Bf1 {[%emt 0:00:30]} Ra5 {[%emt 0:00:00]} 59. Kb3 {[%emt 0:00:00]} Rxd5 {[%emt 0:02:21]} 60. Kc4 {[%emt 0:00:00]} Ra5 {[%emt 0:00:54]} 61. Kxd4 {[%emt 0:00:01]} Bb8 {[%emt 0:00:15]} 62. Bc4 {[%emt 0:00:41]} Ba7+ {[%emt 0:00:30]} 63. Kc3 {[%emt 0:00:30]} Ra1 {[%emt 0:00:30]} 64. f4 {[%emt 0:00:30]} gxf4 {[%emt 0:00:30]} 65. gxf4 {[%emt 0:01:09]} Rh1 {[%emt 0:00:27]} 66. Be2 {[%emt 0:00:57]} Rh4 {[%emt 0:00:25]} 67. Kc4 {[%emt 0:01:50]} Rxf4 {[%emt 0:01:03]} 68. Kd5 {[%emt 0:00:03]} Kd7 {[%emt 0:01:10]} 69. Nc5+ {[%emt 0:01:08]} Bxc5 {[%emt 0:00:47]} 70. Kxc5 {[%emt 0:00:04]} Kc7 {[%emt 0:00:00]} 71. Kd5 {[%emt 0:00:20]} Rf6 {[%emt 0:00:22]} 72. Ke5 {[%emt 0:00:41]} Rb6 {[%emt 0:00:07]} 73. Bc4 {[%emt 0:00:09]} Rb4 {[%emt 0:00:17]} 74. Bd5 {[%emt 0:00:54]} Kb6 {[%emt 0:00:26]} 75. Kf6 {[%emt 0:00:26]} Kxa6 {[%emt 0:00:26]} 76. Kg7 {[%emt 0:00:17]} Rh4 {[%emt 0:01:03]} 77. Kxh6 {[%emt 0:00:12]} Rxh5+ {[%emt 0:00:06]} 78. Kxh5 {[%emt 0:00:02]} 1/2-1/2

[Event "Turkish Youth Championships 2023"]
[Site "Samsun"]
[Date "2023.05.21"]
[Round "4.12"]
[White "Yanik, Berke"]
[Black "Cilek, Bora"]
[Result "1/2-1/2"]
[WhiteElo "1150"]
[BlackElo "2285"]
[Annotator "TA"]
[PlyCount "98"]
[EventDate "2023.05.19"]
[EventType "swiss"]
[EventCountry "TUR"]
[TimeControl "5400+30"]

{[%evp 10,98,27,15,13,9,9,11,19,6,22,10,11,0,43,0,-6,-8,-4,-4,0,15,4,5,41,25,19,12,18,10,12,-4,0,-28,0,-21,-44,-81,-29,-55,-59,-58,-12,-41,-28,-35,-9,-9,-20,-20,27,29,35,29,111,100,106,110,106,107,112,106,125,107,125,125,115,126,121,122,110,79,79,44,122,10,20,0,122,113,171,167,168,8,11,16,127,35,102,81,72]} 1. e4 {[%emt 0:01:00]} g6 {[%emt 0:01:00]} 2. d4 {[%emt 0:00:30]} Bg7 {[%emt 0:00:30]} 3. Nf3 {[%emt 0:00:30]} c6 {[%emt 0:00:30]} 4. c4 {[%emt 0:00:30]} d5 {[%emt 0:00:30]} 5. cxd5 {[%emt 0:00:30]} cxd5 {[%emt 0:00:00]} 6. Bb5+ {[%emt 0:02:30]} Bd7 {[%emt 0:01:00] B27: Sicilian: 2 Nf3, unusual Black 2nd moves.} 7. Bxd7+ {[%emt 0:00:30]} Qxd7 {[%emt 0:00:30]} 8. e5 {[%emt 0:01:30]} e6 {[%emt 0:01:30] The position is equal.} 9. O-O {[%emt 0:00:30]} Nc6 {[%emt 0:00:30]} 10. Nc3 {[%emt 0:03:30]} Nge7 {[%emt 0:00:30]} 11. Bg5 {[%emt 0:02:30]} Nf5 {[%emt 0:07:30]} (11... h6 $5 {[%cal Rh6g5]} 12. Bxe7 Qxe7 $11) 12. Rc1 {[%emt 0:04:30]} (12. g4 $14 Nfe7 13. Qd3) 12... h6 $11 {[%emt 0:00:30] [#]} 13. Be3 $146 {[%emt 0:00:30]} ({Predecessor:} 13. Bf4 g5 14. Be3 O-O 15. Ne2 f6 16. exf6 Bxf6 17. Ng3 Rf7 18. Nh5 Bh8 19. h4 gxh4 {0-1 Hutchings,P-Minnican,A (2150) West of England op 2006 (2)}) 13... O-O {[%emt 0:05:30]} 14. Qd2 {[%emt 0:03:30]} Rfc8 {[%emt 0:03:30]} 15. g4 {[%emt 0:07:30]} Nxe3 {[%emt 0:00:30]} 16. fxe3 {[%emt 0:00:30]} Nd8 {[%emt 0:22:30]} 17. Rf2 {[%emt 0:05:30]} b5 {[%emt 0:00:00]} 18. Rcf1 {[%emt 0:05:30]} b4 {[%emt 0:06:00]} 19. Ne2 {[%emt 0:00:30]} Qb5 {[%emt 0:02:30]} 20. Ng3 {[%emt 0:04:30]} Rc7 {[%emt 0:00:30]} 21. e4 {[%emt 0:03:30]} Rac8 {[%emt 0:00:30]} 22. exd5 {[%emt 0:01:30]} exd5 {[%emt 0:00:30]} 23. Qe2 {[%emt 0:10:30] Prevents b3} Qxe2 {[%emt 0:01:30]} (23... Qa5 $17 24. b3 Ne6) 24. Rxe2 {[%emt 0:00:30]} Ne6 {[%emt 0:00:00]} 25. Rd1 {[%emt 0:00:30]} Rc1 {[%emt 0:01:00]} (25... Rc2 $15 {was preferrable.}) 26. Rxc1 {[%emt 0:01:30]} Rxc1+ {[%emt 0:00:30]} 27. Kf2 {[%emt 0:00:30]} Bf8 {[%emt 0:01:30] With the idea ...Nf4.} (27... h5 $5 {[%cal Rh5g4]} 28. g5 (28. gxh5 Bh6 $15) 28... Bf8 $11) 28. Rd2 {[%emt 0:01:30] [#]} b3 $1 {[%emt 0:02:30]} 29. a3 {[%emt 0:01:30]} Be7 {[%emt 0:02:30]} (29... Rc2 {is more appropriate.} 30. Ne2 h5) 30. Ne2 {[%emt 0:01:30]} Ra1 {[%emt 0:11:30]} 31. Nc3 {[%emt 0:00:30]} Nf4 {[%emt 0:00:30]} (31... Ng5 $11 32. Ke2 (32. Nxd5 Ne4+ 33. Ke3 Nxd2 $11) 32... Nxf3 33. Kxf3 Bg5) 32. Ke3 $16 {[%emt 0:11:30]} g5 {[%emt 0:01:30]} 33. Rd1 $1 {[%emt 0:00:30] Prevents Rc1} Rxd1 {[%emt 0:00:30]} 34. Nxd1 {[%emt 0:00:30][%mdl 4096] Endgame KBN-KNN} f6 {[%emt 0:02:30]} 35. exf6 {[%emt 0:06:54]} Bxf6 {[%emt 0:00:00]} 36. Nd2 {[%emt 0:01:53]} Ng2+ {[%emt 0:00:00]} 37. Kf2 {[%emt 0:01:18]} Nf4 {[%emt 0:00:30]} 38. Nxb3 {[%emt 0:01:20]} Kf7 {[%emt 0:00:00]} 39. Ke3 {[%emt 0:01:02]} Kg6 {[%emt 0:01:00]} 40. Nf2 {[%emt 0:05:28]} h5 {[%emt 0:00:30]} 41. h3 {[%emt 0:06:29]} Ng2+ {[%emt 0:00:30]} (41... h4 $14) 42. Kf3 {[%emt 0:01:02]} (42. Kd2 $16) 42... Nf4 $11 {[%emt 0:00:30] Repels Nd3} 43. Ke3 {[%emt 0:01:11]} (43. a4 $11) 43... Ng2+ $1 $16 {[%emt 0:00:30]} 44. Kd2 {[%emt 0:01:13]} Nf4 {[%emt 0:00:00] [#]} (44... hxg4 $16 {was worth a try.} 45. hxg4 (45. Nxg4 Bg7 $11) 45... Kf7) 45. Kc3 $1 $18 {[%emt 0:01:22]} Ne2+ {[%emt 0:00:00] [#]} 46. Kd3 $2 {[%emt 0:00:14]} (46. Kb4 $1 $18) 46... Nf4+ $11 {[%emt 0:00:30]} 47. Kd2 {[%emt 0:00:00]} Kh6 {[%emt 0:00:30]} (47... h4 $11) 48. Ke3 {[%emt 0:00:21]} (48. Kc3 $16) 48... Ng2+ {[%emt 0:00:00]} (48... Kg6 $1 $14) 49. Kf3 {[%emt 0:00:19]} Nf4 {[%emt 0:01:00] Weighted Error Value: White=0.22 (precise) /Black=0.21 (precise)} 1/2-1/2

[Event "Turkish Youth Championships 2023"]
[Site "Samsun"]
[Date "2023.05.21"]
[Round "4.13"]
[White "Angun, Batu"]
[Black "Alagoz, Zumra Meryem"]
[Result "1-0"]
[WhiteElo "2205"]
[BlackElo "1699"]
[Annotator "TA"]
[PlyCount "103"]
[EventDate "2023.05.19"]
[EventType "swiss"]
[EventCountry "TUR"]
[TimeControl "5400+30"]

{[%evp 20,103,8,0,-11,-5,-15,-17,-7,-14,8,10,45,24,109,107,241,212,227,220,237,237,243,233,216,226,216,242,231,225,205,224,244,247,259,262,507,502,652,499,494,499,499,476,587,583,563,458,523,524,564,550,535,533,514,522,502,491,499,502,550,536,572,562,573,564,887,663,638,627,613,601,876,876,1449,1438,1114,860,29983,29984,29980,29980,29980,29981,29980,29981]} 1. d4 {[%emt 0:01:00]} d5 {[%emt 0:01:00]} 2. c4 {[%emt 0:00:30]} dxc4 {[%emt 0:00:00]} 3. Nf3 {[%emt 0:01:30]} Nf6 {[%emt 0:01:00]} 4. e3 {[%emt 0:00:30]} e6 {[%emt 0:00:30]} 5. Bxc4 {[%emt 0:00:00]} c5 {[%emt 0:01:30]} 6. O-O {[%emt 0:01:00]} a6 {[%emt 0:00:30]} 7. a4 {[%emt 0:00:30]} cxd4 {[%emt 0:01:30]} 8. exd4 {[%emt 0:05:30]} Nc6 {[%emt 0:01:30]} 9. Nc3 {[%emt 0:00:30]} Be7 {[%emt 0:01:30]} 10. Bf4 {[%emt 0:03:30]} O-O {[%emt 0:04:30]} 11. Rc1 {[%emt 0:01:30]} Qb6 {[%emt 0:09:30] D26: Queen's Gambit Accepted: 4 e3 e6 5 Bxc5 c5 sidelines.} 12. Qb3 {[%emt 0:16:30]} Qxb3 {[%emt 0:13:30]} 13. Bxb3 {[%emt 0:00:00] [#]} Bd7 $146 {[%emt 0:02:30] The position is equal.} (13... Nb4 $5 {[%cal Rb4d3]}) ({Predecessor:} 13... Nb4 14. Rfd1 Bd7 15. Bc7 Rfc8 16. Bb6 Nfd5 17. Nxd5 Nxd5 18. Bc5 Bd8 19. Ne5 Be8 {0-1 Miloslavsky,V (2255)-Martirosov,V (2249) USA-chT Amateur East 2007 (3)}) 14. Rfd1 {[%emt 0:01:00]} (14. d5 $5 {[%cal Rd5c6]} Na5 15. Ba2 $11) 14... Rac8 {[%emt 0:09:30]} 15. Ne5 {[%emt 0:01:30][%cal Bf3e5,Be5c4,Bc4b6][%mdl 32]} Rfd8 {[%emt 0:02:30]} 16. Nc4 {[%emt 0:02:30]} Nh5 {[%emt 0:05:30] [#]} (16... Nb4 $1 $11) 17. Be3 $1 $36 {[%emt 0:02:30][%mdl 2048] White has strong initiative. White is more active.} b5 {[%emt 0:04:30]} 18. axb5 {[%emt 0:00:30]} axb5 {[%emt 0:00:30]} 19. Nb6 {[%emt 0:00:30]} ({Stronger than} 19. Nxb5 Rb8 20. Ba4 Nb4 $11) 19... Rb8 {[%emt 0:00:30]} 20. d5 {[%emt 0:09:30]} Na5 {[%emt 0:01:30]} 21. Nxd7 {[%emt 0:06:30]} Rxd7 {[%emt 0:00:30]} 22. dxe6 {[%emt 0:00:30]} Rxd1+ {[%emt 0:05:30]} 23. Bxd1 {[%emt 0:00:30]} Nf6 {[%emt 0:00:30]} 24. exf7+ {[%emt 0:02:30]} Kxf7 {[%emt 0:00:00]} 25. Bf4 {[%emt 0:00:00][%mdl 64] Deflection} Re8 {[%emt 0:05:00][%cal Oe7a3]} 26. Nxb5 {[%emt 0:02:00]} Nd5 {[%emt 0:01:30]} 27. Bd2 {[%emt 0:01:30]} Nb4 $2 {[%emt 0:06:30]} (27... Rb8 {was necessary.}) 28. Rc7 $18 {[%emt 0:00:30]} Rd8 {[%emt 0:00:30] [#] Inhibits Nd6+.} 29. Rxe7+ $1 {[%emt 0:00:30][%mdl 64] Remove Defender, Decoy} Kxe7 {[%emt 0:00:30]} 30. Bxb4+ {[%emt 0:00:30]} Kf6 {[%emt 0:00:30]} 31. Bc3+ {[%emt 0:00:30]} (31. Bxa5 $2 {leads to mate.} Rxd1+) 31... Ke7 {[%emt 0:00:30]} 32. Bf3 {[%emt 0:00:30]} Nc4 {[%emt 0:00:30]} 33. g3 {[%emt 0:00:30]} g5 {[%emt 0:00:30]} 34. Be2 {[%emt 0:00:30]} Nb6 {[%emt 0:00:30]} 35. Ba5 {[%emt 0:00:30]} Rb8 {[%emt 0:02:36]} 36. Nd4 {[%emt 0:03:30] Black must now prevent Nc6+.} Kd6 {[%emt 0:00:30] Dodges Nc6} 37. Bd2 {[%emt 0:00:30]} Kd5 {[%emt 0:00:30]} 38. Nf5 {[%emt 0:00:30]} Ke6 {[%emt 0:00:30]} 39. g4 {[%emt 0:00:30]} Kf6 {[%emt 0:01:59]} 40. Ng3 {[%emt 0:02:30]} h6 {[%emt 0:00:30]} 41. b4 {[%emt 0:01:30][%cal Bb2b4,Bb4b5][%mdl 32]} Nd5 {[%emt 0:01:06]} 42. b5 {[%emt 0:00:30]} Nf4 {[%emt 0:00:15]} 43. Bxf4 {[%emt 0:00:30]} gxf4 {[%emt 0:00:30]} 44. Ne4+ {[%emt 0:00:00]} Ke5 {[%emt 0:00:05]} 45. f3 {[%emt 0:00:00]} Kd4 {[%emt 0:00:34]} 46. Kf2 {[%emt 0:00:30]} Ra8 {[%emt 0:01:20]} 47. h4 {[%emt 0:00:00]} Ra1 {[%emt 0:00:18]} 48. h5 {[%emt 0:00:00]} Rh1 {[%emt 0:00:51]} 49. Bf1 {[%emt 0:00:30] White mates.} Rh2+ {[%emt 0:01:49]} 50. Bg2 {[%emt 0:00:30]} Kd5 {[%emt 0:00:00]} 51. Nc3+ {[%emt 0:00:00]} Kc5 {[%emt 0:00:27]} 52. Ne2 {[%emt 0:00:00] Black did not feel at home in the position after the opening.   Weighted Error Value: White=0.15 (very precise) /Black=0.46} 1-0

[Event "Turkish Youth Championships 2023"]
[Site "Samsun"]
[Date "2023.05.22"]
[Round "4.13"]
[White "Cakmak, Kursat Kagan"]
[Black "Ozgun, Yigit Deniz"]
[Result "1-0"]
[ECO "B22"]
[WhiteElo "1498"]
[BlackElo "1747"]
[Annotator "NA COMBH"]
[PlyCount "49"]
[EventDate "2023.05.19"]
[EventType "swiss"]
[EventCountry "TUR"]
[SourceTitle "playchess.com"]
[Source "ChessBase"]
[SourceQuality "1"]
[TimeControl "5400+30"]

1. e4 {[%emt 0:01:00]} c5 {[%emt 0:01:00]} 2. c3 {[%emt 0:00:30]} Nf6 {[%emt 0:00:30]} 3. e5 {[%emt 0:00:30]} Nd5 {[%emt 0:00:30]} 4. d4 {[%emt 0:00:00]} cxd4 {[%emt 0:00:30]} 5. Nf3 {[%emt 0:00:00]} Nc6 {[%emt 0:00:30]} 6. Bc4 {[%emt 0:00:00]} Nb6 {[%emt 0:00:30]} 7. Bb3 {[%emt 0:00:00]} d6 {[%emt 0:00:30]} 8. exd6 {[%emt 0:00:30]} Qxd6 {[%emt 0:00:30]} 9. O-O {[%emt 0:00:00]} Bf5 {[%emt 0:01:30]} 10. Nxd4 {[%emt 0:01:00]} Nxd4 {[%emt 0:00:30]} 11. cxd4 {[%emt 0:00:00]} e6 {[%emt 0:00:00]} 12. Nc3 {[%emt 0:03:00]} Be7 {[%emt 0:00:00]} 13. Qf3 {[%emt 0:01:30]} O-O {[%emt 0:07:30]} 14. Qxb7 {[%emt 0:04:30]} Rfb8 {[%emt 0:00:30]} 15. Qf3 {[%emt 0:00:30]} Qxd4 {[%emt 0:00:30]} 16. Bf4 {[%emt 0:05:30]} Rd8 {[%emt 0:02:30]} 17. Rfd1 {[%emt 0:04:30]} Qb4 {[%emt 0:00:00]} 18. Bc7 {[%emt 0:02:30]} Rdc8 {[%emt 0:03:00]} 19. Bxb6 {[%emt 0:04:30]} axb6 {[%emt 0:06:30]} 20. Nd5 {[%emt 0:01:30]} Bg4 {[%emt 0:08:30]} 21. Nxe7+ {[%emt 0:00:30]} Kf8 {[%emt 0:00:00]} 22. Nxc8 {[%emt 0:00:30]} Rxc8 {[%emt 0:03:00]} 23. Qb7 {[%emt 0:00:30]} Qc5 {[%emt 0:00:00]} 24. Re1 {[%emt 0:01:30]} h5 {[%emt 0:00:00]} 25. h3 {[%emt 0:00:00]} 1-0

[Event "Turkish Youth Championships 2023"]
[Site "Samsun"]
[Date "2023.05.21"]
[Round "4.14"]
[White "Biyiksiz, Ali Batuhan"]
[Black "Tonoglu, Engin Erdem"]
[Result "1-0"]
[WhiteElo "2107"]
[BlackElo "1404"]
[Annotator "TA"]
[PlyCount "73"]
[EventDate "2023.05.19"]
[EventType "swiss"]
[EventCountry "TUR"]
[TimeControl "5400+30"]

{[%evp 29,73,13,70,72,103,-46,-42,-88,-70,-93,-19,-95,-92,-164,-169,-171,-168,-152,-120,-122,-113,-120,-15,-22,-6,-12,-13,-30,654,647,608,597,571,562,547,504,843,843,829,828,823,610,29974,29975,29984,29985]} 1. d4 {[%emt 0:01:00]} d5 {[%emt 0:01:00]} 2. c4 {[%emt 0:00:30]} e6 {[%emt 0:00:30]} 3. Nc3 {[%emt 0:00:30]} Nf6 {[%emt 0:00:30]} 4. cxd5 {[%emt 0:00:30]} exd5 {[%emt 0:00:30]} 5. Bg5 {[%emt 0:00:30]} c6 {[%emt 0:00:30]} 6. e3 {[%emt 0:00:00]} h6 {[%emt 0:01:30]} 7. Bh4 {[%emt 0:00:00]} Be7 {[%emt 0:00:30]} 8. Bd3 {[%emt 0:00:30]} Nbd7 {[%emt 0:00:30]} 9. Qc2 {[%emt 0:00:30]} O-O {[%emt 0:00:30]} 10. Nge2 {[%emt 0:00:30]} Re8 {[%emt 0:01:30]} 11. O-O {[%emt 0:01:30]} Ne4 {[%emt 0:05:30]} 12. Bxe7 {[%emt 0:00:30]} Qxe7 {[%emt 0:00:00]} 13. Rae1 {[%emt 0:00:30]} Ndf6 {[%emt 0:12:00]} 14. f3 {[%emt 0:00:30]} Nxc3 {[%emt 0:00:30]} 15. Nxc3 {[%emt 0:00:30]} c5 {[%emt 0:03:30]} (15... Rd8 $11) 16. e4 $14 {[%emt 0:14:30] White is more active. D36: Queen's Gambit Declined: Exchange Variation: Main line (5 Bg5 c6 6 Qc2).} cxd4 {[%emt 0:03:30] [#]} 17. Nb5 $146 {[%emt 0:00:00]} (17. exd5 Qxe1 18. Rxe1 Rxe1+ 19. Kf2 Re5 $15) ({White has to play} 17. Nxd5 $16 Nxd5 18. exd5) ({Predecessor:} 17. Nxd5 Nxd5 18. exd5 Qxe1 19. Rxe1 Rxe1+ 20. Kf2 Re8 21. Qc7 a6 22. g4 Kf8 23. Qc5+ Kg8 {1-0 Balogh,P (2275)-Istona,M (2218) SVK-chT2A 2122 2021 (2.1)}) 17... dxe4 $15 {[%emt 0:04:30]} 18. fxe4 {[%emt 0:27:00]} (18. Bxe4 $15 Be6 19. Nxd4) 18... Be6 {[%emt 0:04:30]} (18... Ng4 {with more complications.} 19. Nc7 Qe5 20. g3 Ne3) 19. e5 {[%emt 0:16:30]} Nd5 {[%emt 0:00:30]} (19... Ng4 $17 {White must now prevent ...Ne3.} 20. Qe2 (20. Bh7+ $2 Kh8 $19) 20... Ne3) 20. Qe2 {[%emt 0:05:30]} (20. Bh7+ $2 Kh8 21. Bd3 Ne3 $19) (20. Qd2 $1 $11 {remains equal.}) 20... Ne3 $17 {[%emt 0:19:30]} 21. Nd6 {[%emt 0:03:30]} Nxf1 $19 {[%emt 0:01:30]} 22. Qe4 {[%emt 0:00:30] [#] Qh7+ would kill now.} g6 $1 {[%emt 0:05:30] Hoping for ...Ne3.} 23. Rxf1 {[%emt 0:03:30]} Red8 {[%emt 0:05:30]} 24. Qxd4 {[%emt 0:08:43]} a6 {[%emt 0:06:30]} 25. h4 {[%emt 0:04:15][%cal Oh4h5] [#]} b5 {[%emt 0:03:05]} ({Resist} 25... Bxa2 26. h5 b5 27. Kh1 $14 (27. hxg6 Qa7 $17)) (25... h5 $1 $17 26. b3 b5) 26. Qf4 $1 $11 {[%emt 0:03:51]} Kg7 {[%emt 0:03:45]} ({Much worse is} 26... Bxa2 $6 27. Qg3 $17) 27. Qg3 $1 {[%emt 0:02:23][%cal Of1f7]} Qa7+ {[%emt 0:01:56]} (27... Bxa2 $2 28. Nf5+ Kf8 29. Nxe7 $18) 28. Kh2 $1 {[%emt 0:00:02] Rf6 would be deadly. Chess con chili.} Qd4 $2 {[%emt 0:03:57][%mdl 8192] [#] Black cannot hold the game after this.} (28... Bxa2 29. h5 g5 30. Nf5+ Kf8 31. Nxh6 $18) (28... Rxd6 $11 29. exd6 Qd4) 29. Rxf7+ $3 $18 {[%emt 0:00:54][%mdl 576] Deflection} Bxf7 {[%emt 0:03:21]} 30. Nf5+ {[%emt 0:00:02]} Kh7 {[%emt 0:00:16]} 31. Nxd4 {[%emt 0:00:03]} Rxd4 {[%emt 0:00:00]} 32. h5 {[%emt 0:02:35][%cal Rh5g6]} Rg8 {[%emt 0:01:58]} (32... Rxd3 $142 33. Qxd3 Re8 34. hxg6+ Bxg6 35. Qd7+ Kh8) 33. Qf2 {[%emt 0:01:17]} Rd7 {[%emt 0:01:32]} 34. Qf6 {[%emt 0:01:19] White wants to mate with e6.} Be8 {[%emt 0:03:13]} 35. Bc2 {[%emt 0:00:51]} Rd2 {[%emt 0:01:26]} 36. hxg6+ {[%emt 0:01:54]} Bxg6 {[%emt 0:03:21]} 37. Qf7+ {[%emt 0:00:06][%mdl 64] Deflection. A cool game by Biyiksiz.   Weighted Error Value: White=0.34/Black=0.76} 1-0

[Event "Turkish Youth Championships 2023"]
[Site "Samsun"]
[Date "2023.05.22"]
[Round "4.14"]
[White "Karadas, Hena"]
[Black "Coskun, Emre"]
[Result "0-1"]
[ECO "C48"]
[WhiteElo "1573"]
[BlackElo "1750"]
[Annotator "NA COMBH"]
[PlyCount "74"]
[EventDate "2023.05.19"]
[EventType "swiss"]
[EventCountry "TUR"]
[SourceTitle "playchess.com"]
[Source "ChessBase"]
[SourceQuality "1"]
[TimeControl "5400+30"]

1. e4 {[%emt 0:01:00]} e5 {[%emt 0:03:00]} 2. Nf3 {[%emt 0:00:30]} Nc6 {[%emt 0:00:30]} 3. Nc3 {[%emt 0:00:30]} Nf6 {[%emt 0:00:30]} 4. Bb5 {[%emt 0:00:30]} Nd4 {[%emt 0:04:30]} 5. Ba4 {[%emt 0:04:30]} Nxf3+ {[%emt 0:04:30]} 6. Qxf3 {[%emt 0:01:30]} c6 {[%emt 0:03:30]} 7. d3 {[%emt 0:02:30]} d6 {[%emt 0:02:30]} 8. h3 {[%emt 0:01:30]} Be7 {[%emt 0:02:30]} 9. O-O {[%emt 0:02:30]} a5 {[%emt 0:04:30]} 10. a3 {[%emt 0:01:30]} h6 {[%emt 0:04:30]} 11. Bb3 {[%emt 0:08:30]} g5 {[%emt 0:00:30]} 12. Qe3 {[%emt 0:06:30]} Rg8 {[%emt 0:16:30]} 13. Ne2 {[%emt 0:04:30]} Nh5 {[%emt 0:02:30]} 14. Ng3 {[%emt 0:09:30]} Nf4 {[%emt 0:00:30]} 15. Nf5 {[%emt 0:07:30]} Bxf5 {[%emt 0:01:30]} 16. exf5 {[%emt 0:00:00]} Qd7 {[%emt 0:00:30]} 17. g4 {[%emt 0:08:00]} h5 {[%emt 0:00:30]} 18. Qf3 {[%emt 0:01:30]} Bf6 {[%emt 0:06:30]} 19. c3 {[%emt 0:06:30]} O-O-O {[%emt 0:03:30]} 20. Bd1 {[%emt 0:06:30]} hxg4 {[%emt 0:02:30]} 21. hxg4 {[%emt 0:00:30]} Rh8 {[%emt 0:01:30]} 22. Bxf4 {[%emt 0:00:00]} gxf4 {[%emt 0:00:30]} 23. Qg2 {[%emt 0:06:00]} Rh4 {[%emt 0:05:30]} 24. Bf3 {[%emt 0:00:41]} Rdh8 {[%emt 0:00:30]} 25. Rfd1 {[%emt 0:01:09]} Bd8 {[%emt 0:00:30]} 26. Kf1 {[%emt 0:04:17]} d5 {[%emt 0:03:30]} 27. Ke1 {[%emt 0:03:35]} Qe7 {[%emt 0:05:30]} 28. Kd2 {[%emt 0:06:15]} Rh2 {[%emt 0:00:30]} 29. Qg1 {[%emt 0:01:15]} Bb6 {[%emt 0:02:41]} 30. d4 {[%emt 0:01:56]} exd4 {[%emt 0:00:43]} 31. Re1 {[%emt 0:00:13]} dxc3+ {[%emt 0:01:09]} 32. bxc3 {[%emt 0:00:02]} Qc5 {[%emt 0:01:51]} 33. Re2 {[%emt 0:00:37]} d4 {[%emt 0:01:44]} 34. cxd4 {[%emt 0:00:49]} Qxd4+ {[%emt 0:00:38]} 35. Kc2 {[%emt 0:00:04]} Qc4+ {[%emt 0:00:00]} 36. Kb1 {[%emt 0:00:45]} Qb3+ {[%emt 0:00:36]} 37. Rb2 {[%emt 0:00:07]} Qxf3 {[%emt 0:00:00]} 0-1